[Event "Titled Tuesday Blitz January 31 Early 2023"]
[White "Ilkhomi, Jaloliddin"]
[Black "Ajay, Karthikeyan"]
[WhiteFideId "14700948"]
[BlackFideId "35011685"]
[WhiteElo "1997"]
[BlackElo "2454"]
[Result "1/2-1/2"]
[Round "07"]
[TimeControl "180+2"]
[Date "2023.01.31"]
[WhiteClock "0:00:04"]
[BlackClock "0:00:44"]

1. d4 {[%clk 0:03:00]}  b6 {[%clk 0:03:00]} 2. Nf3 {[%clk 0:02:59]}  Bb7 {[%clk 0:03:00]} 3. c3 {[%clk 0:03:00]}  g6 {[%clk 0:03:01]} 4. Bf4 {[%clk 0:03:00]}  Bg7 {[%clk 0:03:00]} 5. Nbd2 {[%clk 0:03:00]}  d6 {[%clk 0:03:01]} 6. e4 {[%clk 0:03:00]}  Nd7 {[%clk 0:03:02]} 7. Bd3 {[%clk 0:03:00]}  e5 {[%clk 0:03:02]} 8. Bg3 {[%clk 0:02:59]}  Ne7 {[%clk 0:03:01]} 9. O-O {[%clk 0:02:59]}  O-O {[%clk 0:03:01]} 10. Qe2 {[%clk 0:02:59]}  a6 {[%clk 0:02:59]} 11. dxe5 {[%clk 0:02:59]}  Nxe5 {[%clk 0:02:56]} 12. Nxe5 {[%clk 0:02:59]}  dxe5 {[%clk 0:02:54]} 13. Rfd1 {[%clk 0:02:59]}  Qe8 {[%clk 0:02:46]} 14. a4 {[%clk 0:02:57]}  Nc8 {[%clk 0:02:40]} 15. Nc4 {[%clk 0:02:24]}  Qe7 {[%clk 0:02:38]} 16. f3 {[%clk 0:02:22]}  Nd6 {[%clk 0:02:34]} 17. Nxd6 {[%clk 0:02:17]}  Qxd6 {[%clk 0:02:35]} 18. Bc4 {[%clk 0:02:01]}  Qe7 {[%clk 0:02:32]} 19. Bd5 {[%clk 0:01:55]}  c6 {[%clk 0:02:31]} 20. Bb3 {[%clk 0:01:53]}  b5 {[%clk 0:02:31]} 21. Bf2 {[%clk 0:01:53]}  Rfd8 {[%clk 0:02:28]} 22. axb5 {[%clk 0:01:52]}  axb5 {[%clk 0:02:28]} 23. Rxa8 {[%clk 0:01:50]}  Rxa8 {[%clk 0:02:24]} 24. Qe3 {[%clk 0:01:43]}  Bf8 {[%clk 0:02:16]} 25. Qb6 {[%clk 0:01:42]}  Ra6 {[%clk 0:02:09]} 26. Qd8 {[%clk 0:01:33]}  Qxd8 {[%clk 0:02:07]} 27. Rxd8 {[%clk 0:01:34]}  Ra1+ {[%clk 0:02:08]} 28. Rd1 {[%clk 0:01:29]}  Rxd1+ {[%clk 0:02:07]} 29. Bxd1 {[%clk 0:01:30]}  b4 {[%clk 0:02:03]} 30. c4 {[%clk 0:01:26]}  Ba6 {[%clk 0:02:00]} 31. b3 {[%clk 0:01:26]}  f5 {[%clk 0:01:48]} 32. Bc2 {[%clk 0:01:24]}  Bc8 {[%clk 0:01:47]} 33. Kf1 {[%clk 0:01:20]}  Kf7 {[%clk 0:01:46]} 34. Ke2 {[%clk 0:01:19]}  Be6 {[%clk 0:01:44]} 35. Be1 {[%clk 0:01:18]}  Bc5 {[%clk 0:01:44]} 36. Bf2 {[%clk 0:01:17]}  Bxf2 {[%clk 0:01:43]} 37. Kxf2 {[%clk 0:01:18]}  f4 {[%clk 0:01:38]} 38. Bd3 {[%clk 0:01:03]}  Ke7 {[%clk 0:01:37]} 39. Bf1 {[%clk 0:00:58]}  Kd6 {[%clk 0:01:32]} 40. Ke2 {[%clk 0:00:58]}  Kc5 {[%clk 0:01:27]} 41. Kd3 {[%clk 0:00:58]}  g5 {[%clk 0:01:26]} 42. Be2 {[%clk 0:00:54]}  h5 {[%clk 0:01:21]} 43. h3 {[%clk 0:00:54]}  Kb6 {[%clk 0:01:18]} 44. Bd1 {[%clk 0:00:54]}  Kc5 {[%clk 0:01:17]} 45. Be2 {[%clk 0:00:54]}  Bf7 {[%clk 0:01:16]} 46. Bd1 {[%clk 0:00:54]}  Kd6 {[%clk 0:01:13]} 47. Be2 {[%clk 0:00:54]}  Ke7 {[%clk 0:01:08]} 48. Bd1 {[%clk 0:00:49]}  Be6 {[%clk 0:01:08]} 49. Ke2 {[%clk 0:00:35]}  g4 {[%clk 0:01:03]} 50. h4 {[%clk 0:00:25]}  gxf3+ {[%clk 0:00:56]} 51. gxf3 {[%clk 0:00:20]}  Kd6 {[%clk 0:00:56]} 52. Kd3 {[%clk 0:00:15]}  Kc5 {[%clk 0:00:57]} 53. Be2 {[%clk 0:00:16]}  Bh3 {[%clk 0:00:57]} 54. Bd1 {[%clk 0:00:03]}  Bf1+ {[%clk 0:00:55]} 55. Kc2 {[%clk 0:00:04]}  Kd4 {[%clk 0:00:53]} 56. Kd2 {[%clk 0:00:04]}  c5 {[%clk 0:00:51]} 57. Bc2 {[%clk 0:00:05]}  Bg2 {[%clk 0:00:44]} 58. Bd1 {[%clk 0:00:05]}  Bf1 {[%clk 0:00:45]} 59. Bc2 {[%clk 0:00:05]}  Bh3 {[%clk 0:00:45]} 60. Bd1 {[%clk 0:00:04]}  Bg2 {[%clk 0:00:43]} 61. Be2 {[%clk 0:00:05]}  Bh1 {[%clk 0:00:44]} 62. Bd1 {[%clk 0:00:04]}  Bg2 {[%clk 0:00:44]} 63. Be2 {[%clk 0:00:04]}  Bh3 {[%clk 0:00:44]} 64. Bd1 {[%clk 0:00:04]}  Bf1 {[%clk 0:00:44]} 1/2-1/2


[Site "https://www.chess.com"]

[Event "Titled Tuesday Blitz January 31 Early 2023"]
[White "Aradhya, Garg"]
[Black "Iljin, Timofey"]
[WhiteFideId "25006746"]
[BlackFideId "14110180"]
[WhiteElo "2284"]
[BlackElo "2329"]
[Result "1-0"]
[Round "07"]
[TimeControl "180+2"]
[Date "2023.01.31"]
[WhiteClock "0:01:43"]
[BlackClock "0:01:03"]

1. d4 {[%clk 0:03:00]}  d5 {[%clk 0:02:59]} 2. c4 {[%clk 0:03:00]}  e6 {[%clk 0:02:59]} 3. Nc3 {[%clk 0:02:59]}  Nf6 {[%clk 0:02:59]} 4. Nf3 {[%clk 0:02:57]}  c6 {[%clk 0:02:59]} 5. e3 {[%clk 0:02:52]}  Nbd7 {[%clk 0:02:58]} 6. Nd2 {[%clk 0:02:50]}  Bd6 {[%clk 0:02:54]} 7. g3 {[%clk 0:02:50]}  O-O {[%clk 0:02:53]} 8. Bg2 {[%clk 0:02:50]}  b6 {[%clk 0:02:54]} 9. O-O {[%clk 0:02:50]}  Bb7 {[%clk 0:02:55]} 10. e4 {[%clk 0:02:50]}  dxe4 {[%clk 0:02:53]} 11. Ndxe4 {[%clk 0:02:51]}  Nxe4 {[%clk 0:02:54]} 12. Nxe4 {[%clk 0:02:52]}  Be7 {[%clk 0:02:54]} 13. b3 {[%clk 0:02:45]}  Nf6 {[%clk 0:02:54]} 14. Nc3 {[%clk 0:02:45]}  Qc7 {[%clk 0:02:52]} 15. Bf4 {[%clk 0:02:44]}  Bd6 {[%clk 0:02:50]} 16. Bg5 {[%clk 0:02:44]}  Be7 {[%clk 0:02:47]} 17. Qf3 {[%clk 0:02:43]}  Rad8 {[%clk 0:02:43]} 18. Rad1 {[%clk 0:02:42]}  h6 {[%clk 0:02:43]} 19. Bf4 {[%clk 0:02:42]}  Bd6 {[%clk 0:02:43]} 20. Bxh6 {[%clk 0:02:42]}  Rd7 {[%clk 0:02:25]} 21. Bg5 {[%clk 0:02:40]}  Nh7 {[%clk 0:02:19]} 22. Be3 {[%clk 0:02:38]}  Qd8 {[%clk 0:02:18]} 23. c5 {[%clk 0:02:34]}  Be7 {[%clk 0:02:12]} 24. h4 {[%clk 0:02:32]}  Nf6 {[%clk 0:02:11]} 25. h5 {[%clk 0:02:29]}  Nd5 {[%clk 0:02:08]} 26. Nxd5 {[%clk 0:02:28]}  Rxd5 {[%clk 0:02:06]} 27. Qg4 {[%clk 0:02:23]}  Rd7 {[%clk 0:01:51]} 28. Rc1 {[%clk 0:02:08]}  bxc5 {[%clk 0:01:37]} 29. dxc5 {[%clk 0:02:07]}  Qa5 {[%clk 0:01:33]} 30. Bd4 {[%clk 0:01:55]}  Bg5 {[%clk 0:01:18]} 31. Bxg7 {[%clk 0:01:53]}  f5 {[%clk 0:01:06]} 32. Qxg5 {[%clk 0:01:50]}  Rxg7 {[%clk 0:01:06]} 33. Qe3 {[%clk 0:01:50]}  Re7 {[%clk 0:01:02]} 34. h6 {[%clk 0:01:47]}  e5 {[%clk 0:01:02]} 35. Qg5+ {[%clk 0:01:46]}  Kh8 {[%clk 0:01:01]} 36. Qxe7 {[%clk 0:01:45]}  Rg8 {[%clk 0:01:02]} 37. Qf6+ {[%clk 0:01:45]}  Kh7 {[%clk 0:01:02]} 38. Qxf5+ {[%clk 0:01:45]}  Rg6 {[%clk 0:01:02]} 39. Be4 {[%clk 0:01:43]}  Kxh6 {[%clk 0:01:03]} 40. Qxg6# {[%clk 0:01:43]} 1-0


[Site "https://www.chess.com"]

[Event "Titled Tuesday Blitz January 31 Early 2023"]
[White "Ibarra Jerez, Jose Carlos"]
[Black "Womacka, Mathias"]
[WhiteFideId "2226332"]
[BlackFideId "4611390"]
[WhiteElo "2563"]
[BlackElo "2396"]
[Result "1/2-1/2"]
[Round "07"]
[TimeControl "180+2"]
[Date "2023.01.31"]
[WhiteClock "0:00:14"]
[BlackClock "0:00:05"]

1. e4 {[%clk 0:03:00]}  c5 {[%clk 0:02:59]} 2. Nc3 {[%clk 0:03:00]}  Nc6 {[%clk 0:02:58]} 3. Nge2 {[%clk 0:02:57]}  e5 {[%clk 0:02:53]} 4. Nd5 {[%clk 0:02:56]}  Nce7 {[%clk 0:02:51]} 5. Nec3 {[%clk 0:02:54]}  Nxd5 {[%clk 0:02:51]} 6. Nxd5 {[%clk 0:02:55]}  Nf6 {[%clk 0:02:50]} 7. Bc4 {[%clk 0:02:55]}  Be7 {[%clk 0:02:49]} 8. d3 {[%clk 0:02:53]}  O-O {[%clk 0:02:41]} 9. O-O {[%clk 0:02:51]}  d6 {[%clk 0:02:41]} 10. f4 {[%clk 0:02:50]}  exf4 {[%clk 0:02:41]} 11. Bxf4 {[%clk 0:02:50]}  Be6 {[%clk 0:02:40]} 12. Nxe7+ {[%clk 0:02:01]}  Qxe7 {[%clk 0:02:38]} 13. Bg5 {[%clk 0:02:01]}  Bxc4 {[%clk 0:02:31]} 14. Bxf6 {[%clk 0:01:32]}  gxf6 {[%clk 0:02:27]} 15. dxc4 {[%clk 0:01:33]}  Qxe4 {[%clk 0:02:26]} 16. Qxd6 {[%clk 0:01:27]}  Qxc4 {[%clk 0:02:13]} 17. Qxf6 {[%clk 0:01:06]}  Qd4+ {[%clk 0:02:10]} 18. Qxd4 {[%clk 0:01:06]}  cxd4 {[%clk 0:02:10]} 19. Rad1 {[%clk 0:01:06]}  Rac8 {[%clk 0:02:08]} 20. Rf2 {[%clk 0:01:03]}  Rc4 {[%clk 0:02:06]} 21. b3 {[%clk 0:01:01]}  Rc3 {[%clk 0:02:01]} 22. Rxd4 {[%clk 0:01:01]}  Rfc8 {[%clk 0:02:00]} 23. Rg4+ {[%clk 0:00:41]}  Kf8 {[%clk 0:01:58]} 24. Rgf4 {[%clk 0:00:41]}  R8c7 {[%clk 0:01:52]} 25. h3 {[%clk 0:00:42]}  Kg8 {[%clk 0:01:24]} 26. Rb4 {[%clk 0:00:26]}  Rxc2 {[%clk 0:01:19]} 27. Rxc2 {[%clk 0:00:18]}  Rxc2 {[%clk 0:01:18]} 28. a4 {[%clk 0:00:19]}  b6 {[%clk 0:01:17]} 29. Rg4+ {[%clk 0:00:16]}  Kf8 {[%clk 0:01:14]} 30. b4 {[%clk 0:00:16]}  Ra2 {[%clk 0:01:00]} 31. b5 {[%clk 0:00:17]}  f6 {[%clk 0:01:00]} 32. Kh2 {[%clk 0:00:17]}  Kf7 {[%clk 0:01:00]} 33. Kg3 {[%clk 0:00:17]}  f5 {[%clk 0:00:41]} 34. Rc4 {[%clk 0:00:17]}  Kg6 {[%clk 0:00:37]} 35. h4 {[%clk 0:00:15]}  Kh5 {[%clk 0:00:34]} 36. Kh3 {[%clk 0:00:15]}  Ra3+ {[%clk 0:00:31]} 37. g3 {[%clk 0:00:15]}  Ra2 {[%clk 0:00:29]} 38. Rd4 {[%clk 0:00:15]}  Ra3 {[%clk 0:00:26]} 39. Rc4 {[%clk 0:00:15]}  Ra2 {[%clk 0:00:24]} 40. Rc7 {[%clk 0:00:14]}  Rxa4 {[%clk 0:00:22]} 41. Rxh7+ {[%clk 0:00:14]}  Kg6 {[%clk 0:00:23]} 42. Rc7 {[%clk 0:00:14]}  Ra5 {[%clk 0:00:22]} 43. Rd7 {[%clk 0:00:11]}  Rxb5 {[%clk 0:00:22]} 44. Rxa7 {[%clk 0:00:11]}  Rb3 {[%clk 0:00:22]} 45. Kg2 {[%clk 0:00:10]}  Rb2+ {[%clk 0:00:21]} 46. Kf3 {[%clk 0:00:11]}  Rb3+ {[%clk 0:00:21]} 47. Kf4 {[%clk 0:00:05]}  Rb4+ {[%clk 0:00:21]} 48. Ke5 {[%clk 0:00:06]}  Rg4 {[%clk 0:00:19]} 49. Ra8 {[%clk 0:00:04]}  Kg7 {[%clk 0:00:17]} 50. Ra7+ {[%clk 0:00:04]}  Kg6 {[%clk 0:00:17]} 51. Rb7 {[%clk 0:00:04]}  Rxg3 {[%clk 0:00:16]} 52. Rxb6+ {[%clk 0:00:05]}  Kh5 {[%clk 0:00:16]} 53. Kxf5 {[%clk 0:00:05]}  Rf3+ {[%clk 0:00:16]} 54. Ke4 {[%clk 0:00:05]}  Rf1 {[%clk 0:00:16]} 55. Rb4 {[%clk 0:00:04]}  Kxh4 {[%clk 0:00:15]} 56. Ra4 {[%clk 0:00:04]}  Kg3 {[%clk 0:00:14]} 57. Ra3+ {[%clk 0:00:03]}  Kg4 {[%clk 0:00:14]} 58. Ra8 {[%clk 0:00:03]}  Re1+ {[%clk 0:00:12]} 59. Kd3 {[%clk 0:00:03]}  Kf4 {[%clk 0:00:12]} 60. Rf8+ {[%clk 0:00:04]}  Kg5 {[%clk 0:00:11]} 61. Rf2 {[%clk 0:00:04]}  Re7 {[%clk 0:00:11]} 62. Rf8 {[%clk 0:00:04]}  Re6 {[%clk 0:00:11]} 63. Kd4 {[%clk 0:00:05]}  Re1 {[%clk 0:00:10]} 64. Rh8 {[%clk 0:00:05]}  Kf5 {[%clk 0:00:09]} 65. Rh2 {[%clk 0:00:05]}  Rd1+ {[%clk 0:00:08]} 66. Ke3 {[%clk 0:00:05]}  Rd7 {[%clk 0:00:08]} 67. Rh5+ {[%clk 0:00:05]}  Kg4 {[%clk 0:00:08]} 68. Re5 {[%clk 0:00:04]}  Rd6 {[%clk 0:00:07]} 69. Re7 {[%clk 0:00:05]}  Kf5 {[%clk 0:00:06]} 70. Rc7 {[%clk 0:00:04]}  Re6+ {[%clk 0:00:06]} 71. Kf3 {[%clk 0:00:04]}  Rd6 {[%clk 0:00:05]} 72. Rc5+ {[%clk 0:00:05]}  Ke6 {[%clk 0:00:04]} 73. Ke4 {[%clk 0:00:05]}  Ra6 {[%clk 0:00:04]} 74. Rh5 {[%clk 0:00:06]}  Ra4+ {[%clk 0:00:04]} 75. Kd3 {[%clk 0:00:07]}  Rb4 {[%clk 0:00:04]} 76. Rc5 {[%clk 0:00:07]}  Ra4 {[%clk 0:00:04]} 77. Rb5 {[%clk 0:00:08]}  Rg4 {[%clk 0:00:04]} 78. Rb6+ {[%clk 0:00:08]}  Kd5 {[%clk 0:00:04]} 79. Rb8 {[%clk 0:00:09]}  Rg3+ {[%clk 0:00:03]} 80. Ke2 {[%clk 0:00:10]}  Kd4 {[%clk 0:00:04]} 81. Kf2 {[%clk 0:00:10]}  Rc3 {[%clk 0:00:03]} 82. Re8 {[%clk 0:00:11]}  Kc4 {[%clk 0:00:04]} 83. Ke2 {[%clk 0:00:11]}  Kd4 {[%clk 0:00:05]} 84. Kd2 {[%clk 0:00:11]}  Ra3 {[%clk 0:00:05]} 85. Rd8+ {[%clk 0:00:12]}  Ke4 {[%clk 0:00:05]} 86. Kc2 {[%clk 0:00:12]}  Rg3 {[%clk 0:00:04]} 87. Rf8 {[%clk 0:00:11]}  Kd4 {[%clk 0:00:04]} 88. Rf6 {[%clk 0:00:11]}  Rg2+ {[%clk 0:00:03]} 89. Kb3 {[%clk 0:00:11]}  Rg3+ {[%clk 0:00:04]} 90. Kb4 {[%clk 0:00:11]}  Kd5 {[%clk 0:00:04]} 91. Rf5+ {[%clk 0:00:12]}  Ke4 {[%clk 0:00:04]} 92. Rh5 {[%clk 0:00:12]}  Rg4 {[%clk 0:00:05]} 93. Kc5 {[%clk 0:00:13]}  Ke3 {[%clk 0:00:04]} 94. Kd5 {[%clk 0:00:12]}  Ra4 {[%clk 0:00:04]} 95. Rh3+ {[%clk 0:00:12]}  Kd2 {[%clk 0:00:04]} 96. Rb3 {[%clk 0:00:12]}  Ra5+ {[%clk 0:00:04]} 97. Kc4 {[%clk 0:00:12]}  Ra4+ {[%clk 0:00:05]} 98. Kb5 {[%clk 0:00:12]}  Re4 {[%clk 0:00:05]} 99. Rg3 {[%clk 0:00:13]}  Re3 {[%clk 0:00:05]} 100. Rg2+ {[%clk 0:00:13]}  Kd3 {[%clk 0:00:06]} 101. Kc5 {[%clk 0:00:12]}  Re5+ {[%clk 0:00:05]} 102. Kd6 {[%clk 0:00:13]}  Rf5 {[%clk 0:00:05]} 103. Ke6 {[%clk 0:00:13]}  Rb5 {[%clk 0:00:05]} 104. Ra2 {[%clk 0:00:14]}  Ke3 {[%clk 0:00:05]} 105. Ra3+ {[%clk 0:00:14]}  Ke4 {[%clk 0:00:05]} 1/2-1/2


[Site "https://www.chess.com"]

[Event "Titled Tuesday Blitz January 31 Early 2023"]
[White "Llanos, Guillermo"]
[Black "Goltsev, Dmitry"]
[WhiteFideId "100358"]
[BlackFideId "24176710"]
[WhiteElo "2290"]
[BlackElo "2269"]
[Result "0-1"]
[Round "07"]
[TimeControl "180+2"]
[Date "2023.01.31"]
[WhiteClock "0:00:03"]
[BlackClock "0:01:38"]

1. Nf3 {[%clk 0:02:59]}  d5 {[%clk 0:03:00]} 2. e3 {[%clk 0:02:58]}  c6 {[%clk 0:03:00]} 3. c4 {[%clk 0:02:57]}  Nf6 {[%clk 0:03:01]} 4. Nc3 {[%clk 0:02:56]}  g6 {[%clk 0:03:02]} 5. d4 {[%clk 0:02:55]}  Bg7 {[%clk 0:03:02]} 6. Be2 {[%clk 0:02:54]}  O-O {[%clk 0:03:02]} 7. O-O {[%clk 0:02:54]}  Ne4 {[%clk 0:03:02]} 8. Nxe4 {[%clk 0:02:52]}  dxe4 {[%clk 0:03:03]} 9. Nd2 {[%clk 0:02:52]}  f5 {[%clk 0:03:02]} 10. f3 {[%clk 0:02:39]}  exf3 {[%clk 0:03:00]} 11. Nxf3 {[%clk 0:02:32]}  Nd7 {[%clk 0:03:01]} 12. b4 {[%clk 0:02:15]}  e5 {[%clk 0:02:58]} 13. Bb2 {[%clk 0:02:04]}  e4 {[%clk 0:02:53]} 14. Ne1 {[%clk 0:01:57]}  a5 {[%clk 0:02:51]} 15. a3 {[%clk 0:01:54]}  Qe7 {[%clk 0:02:50]} 16. Qb3 {[%clk 0:01:51]}  a4 {[%clk 0:02:48]} 17. Qd1 {[%clk 0:01:35]}  Qg5 {[%clk 0:02:41]} 18. Nc2 {[%clk 0:01:33]}  c5 {[%clk 0:02:39]} 19. Qe1 {[%clk 0:01:26]}  b6 {[%clk 0:02:36]} 20. Bc3 {[%clk 0:01:24]}  Bb7 {[%clk 0:02:24]} 21. g3 {[%clk 0:01:23]}  Rac8 {[%clk 0:02:23]} 22. bxc5 {[%clk 0:01:20]}  bxc5 {[%clk 0:02:23]} 23. Rb1 {[%clk 0:01:15]}  Ba6 {[%clk 0:02:20]} 24. d5 {[%clk 0:01:04]}  Ne5 {[%clk 0:02:19]} 25. Bxe5 {[%clk 0:00:59]}  Bxe5 {[%clk 0:02:20]} 26. Rb6 {[%clk 0:00:58]}  Ra8 {[%clk 0:02:17]} 27. Qf2 {[%clk 0:00:40]}  f4 {[%clk 0:02:09]} 28. exf4 {[%clk 0:00:34]}  Bxf4 {[%clk 0:02:03]} 29. Qxc5 {[%clk 0:00:31]}  Bxg3 {[%clk 0:02:00]} 30. hxg3 {[%clk 0:00:18]}  Qxg3+ {[%clk 0:02:01]} 31. Kh1 {[%clk 0:00:18]}  Qh3+ {[%clk 0:01:58]} 32. Kg1 {[%clk 0:00:18]}  Qg3+ {[%clk 0:01:59]} 33. Kh1 {[%clk 0:00:18]}  Rxf1+ {[%clk 0:01:56]} 34. Bxf1 {[%clk 0:00:17]}  Rf8 {[%clk 0:01:56]} 35. Bg2 {[%clk 0:00:16]}  Rf2 {[%clk 0:01:52]} 36. Rb8+ {[%clk 0:00:14]}  Kg7 {[%clk 0:01:52]} 37. Qd4+ {[%clk 0:00:11]}  Kf7 {[%clk 0:01:51]} 38. Qxe4 {[%clk 0:00:10]}  Rf4 {[%clk 0:01:46]} 39. Qe6+ {[%clk 0:00:09]}  Kg7 {[%clk 0:01:46]} 40. Rg8+ {[%clk 0:00:09]}  Kh6 {[%clk 0:01:46]} 41. Qh3+ {[%clk 0:00:09]}  Rh4 {[%clk 0:01:46]} 42. Qxh4+ {[%clk 0:00:06]}  Qxh4+ {[%clk 0:01:47]} 43. Kg1 {[%clk 0:00:06]}  Bxc4 {[%clk 0:01:46]} 44. Rc8 {[%clk 0:00:03]}  Bd3 {[%clk 0:01:38]} 0-1


[Site "https://www.chess.com"]

[Event "Titled Tuesday Blitz January 31 Early 2023"]
[White "Tristan, Leonardo"]
[Black "Ljukin, Sergei"]
[WhiteFideId "113816"]
[BlackFideId "14102200"]
[WhiteElo "2545"]
[BlackElo "2362"]
[Result "1-0"]
[Round "07"]
[TimeControl "180+2"]
[Date "2023.01.31"]
[WhiteClock "0:02:16"]
[BlackClock "0:01:59"]

1. d4 {[%clk 0:03:00]}  d5 {[%clk 0:02:59]} 2. Nf3 {[%clk 0:03:01]}  Nf6 {[%clk 0:02:58]} 3. Bf4 {[%clk 0:03:01]}  c5 {[%clk 0:02:58]} 4. e3 {[%clk 0:03:01]}  Nc6 {[%clk 0:02:58]} 5. Nbd2 {[%clk 0:03:01]}  e6 {[%clk 0:02:48]} 6. c3 {[%clk 0:03:01]}  Bd6 {[%clk 0:02:47]} 7. Bg3 {[%clk 0:03:01]}  O-O {[%clk 0:02:46]} 8. Bb5 {[%clk 0:03:00]}  Qe7 {[%clk 0:02:42]} 9. Bxc6 {[%clk 0:02:59]}  bxc6 {[%clk 0:02:42]} 10. Qa4 {[%clk 0:03:00]}  Bd7 {[%clk 0:02:35]} 11. Bxd6 {[%clk 0:02:53]}  Qxd6 {[%clk 0:02:34]} 12. Qa3 {[%clk 0:02:54]}  a5 {[%clk 0:02:09]} 13. Qxc5 {[%clk 0:02:34]}  Qxc5 {[%clk 0:02:09]} 14. dxc5 {[%clk 0:02:35]}  Rfb8 {[%clk 0:02:09]} 15. b3 {[%clk 0:02:27]}  Rb5 {[%clk 0:02:06]} 16. c4 {[%clk 0:02:16]}  Rxc5 {[%clk 0:01:59]} 17. Ne5 {[%clk 0:02:16]} 1-0


[Site "https://www.chess.com"]

[Event "Titled Tuesday Blitz January 31 Early 2023"]
[White "Ongut, Tamas Gunes"]
[Black "Nigmatov, Ortik"]
[WhiteFideId "770280"]
[BlackFideId "14202131"]
[WhiteElo "2299"]
[BlackElo "2438"]
[Result "1-0"]
[Round "07"]
[TimeControl "180+2"]
[Date "2023.01.31"]
[WhiteClock "0:02:05"]
[BlackClock "0:01:11"]

1. e4 {[%clk 0:03:00]}  c5 {[%clk 0:02:59]} 2. Nf3 {[%clk 0:03:00]}  e6 {[%clk 0:02:56]} 3. d4 {[%clk 0:03:00]}  cxd4 {[%clk 0:02:56]} 4. Nxd4 {[%clk 0:03:00]}  Nf6 {[%clk 0:02:57]} 5. Nc3 {[%clk 0:03:01]}  d6 {[%clk 0:02:55]} 6. g4 {[%clk 0:02:59]}  e5 {[%clk 0:02:53]} 7. Nf5 {[%clk 0:02:58]}  h5 {[%clk 0:02:53]} 8. Bg5 {[%clk 0:02:57]}  hxg4 {[%clk 0:02:52]} 9. Nd5 {[%clk 0:02:57]}  Bxf5 {[%clk 0:02:52]} 10. exf5 {[%clk 0:02:57]}  Qa5+ {[%clk 0:02:52]} 11. Nc3 {[%clk 0:02:30]}  Ne4 {[%clk 0:02:51]} 12. Bb5+ {[%clk 0:02:26]}  Nc6 {[%clk 0:02:49]} 13. Qd5 {[%clk 0:02:22]}  Qb6 {[%clk 0:01:13]} 14. Nxe4 {[%clk 0:02:10]}  a6 {[%clk 0:01:11]} 15. Bxc6+ {[%clk 0:02:07]}  bxc6 {[%clk 0:01:11]} 16. Nxd6+ {[%clk 0:02:05]} 1-0


[Site "https://www.chess.com"]

[Event "Titled Tuesday Blitz January 31 Early 2023"]
[White "Ronka, Erik"]
[Black "Koellner, Ruben Gideon"]
[WhiteFideId "505080"]
[BlackFideId "12993093"]
[WhiteElo "2276"]
[BlackElo "2426"]
[Result "1-0"]
[Round "07"]
[TimeControl "180+2"]
[Date "2023.01.31"]
[WhiteClock "0:00:08"]
[BlackClock "0:00:04"]

1. e4 {[%clk 0:03:00]}  d6 {[%clk 0:02:59]} 2. d4 {[%clk 0:03:00]}  Nf6 {[%clk 0:02:59]} 3. f3 {[%clk 0:03:00]}  e5 {[%clk 0:02:57]} 4. Ne2 {[%clk 0:03:00]}  Nbd7 {[%clk 0:02:56]} 5. c4 {[%clk 0:03:00]}  Be7 {[%clk 0:02:54]} 6. Nbc3 {[%clk 0:03:00]}  h6 {[%clk 0:02:53]} 7. Be3 {[%clk 0:03:01]}  Nh7 {[%clk 0:02:52]} 8. Qd2 {[%clk 0:02:46]}  Bg5 {[%clk 0:02:51]} 9. h4 {[%clk 0:02:32]}  Bxe3 {[%clk 0:02:48]} 10. Qxe3 {[%clk 0:02:33]}  c6 {[%clk 0:02:38]} 11. O-O-O {[%clk 0:02:29]}  Qa5 {[%clk 0:02:27]} 12. g4 {[%clk 0:02:02]}  Nhf8 {[%clk 0:02:23]} 13. Bh3 {[%clk 0:01:56]}  Qb6 {[%clk 0:02:18]} 14. g5 {[%clk 0:01:51]}  hxg5 {[%clk 0:02:16]} 15. hxg5 {[%clk 0:01:51]}  Ng6 {[%clk 0:02:15]} 16. Bf5 {[%clk 0:01:25]}  Rxh1 {[%clk 0:02:12]} 17. Rxh1 {[%clk 0:01:26]}  Ndf8 {[%clk 0:02:11]} 18. c5 {[%clk 0:01:23]}  dxc5 {[%clk 0:02:09]} 19. dxc5 {[%clk 0:01:24]}  Qc7 {[%clk 0:01:56]} 20. Bxc8 {[%clk 0:01:00]}  Rxc8 {[%clk 0:01:55]} 21. Ng3 {[%clk 0:01:01]}  Ne7 {[%clk 0:01:40]} 22. Nf5 {[%clk 0:00:56]}  Nxf5 {[%clk 0:01:36]} 23. exf5 {[%clk 0:00:56]}  Qe7 {[%clk 0:01:21]} 24. Ne4 {[%clk 0:00:53]}  Rd8 {[%clk 0:01:07]} 25. Nd6+ {[%clk 0:00:47]}  Kd7 {[%clk 0:00:59]} 26. Nxb7 {[%clk 0:00:42]}  Rb8 {[%clk 0:00:58]} 27. Nd6 {[%clk 0:00:41]}  Kc7 {[%clk 0:00:51]} 28. f4 {[%clk 0:00:35]}  f6 {[%clk 0:00:43]} 29. gxf6 {[%clk 0:00:34]}  gxf6 {[%clk 0:00:43]} 30. fxe5 {[%clk 0:00:32]}  Qxe5 {[%clk 0:00:42]} 31. Qxe5 {[%clk 0:00:15]}  fxe5 {[%clk 0:00:43]} 32. Kc2 {[%clk 0:00:13]}  Rb4 {[%clk 0:00:35]} 33. a3 {[%clk 0:00:12]}  Rf4 {[%clk 0:00:33]} 34. Rh8 {[%clk 0:00:11]}  Rf2+ {[%clk 0:00:22]} 35. Kb3 {[%clk 0:00:11]}  Rf3+ {[%clk 0:00:18]} 36. Ka2 {[%clk 0:00:11]}  e4 {[%clk 0:00:13]} 37. Rxf8 {[%clk 0:00:10]}  e3 {[%clk 0:00:14]} 38. Re8 {[%clk 0:00:11]}  Kd7 {[%clk 0:00:15]} 39. Re4 {[%clk 0:00:10]}  a5 {[%clk 0:00:12]} 40. f6 {[%clk 0:00:09]}  Rxf6 {[%clk 0:00:09]} 41. Rxe3 {[%clk 0:00:09]}  Rh6 {[%clk 0:00:09]} 42. Rc3 {[%clk 0:00:09]}  Rh4 {[%clk 0:00:08]} 43. Rc4 {[%clk 0:00:08]}  Rh5 {[%clk 0:00:08]} 44. b4 {[%clk 0:00:08]}  a4 {[%clk 0:00:07]} 45. Kb2 {[%clk 0:00:08]}  Rh2+ {[%clk 0:00:07]} 46. Rc2 {[%clk 0:00:07]}  Rh3 {[%clk 0:00:08]} 47. Nc4 {[%clk 0:00:07]}  Rb3+ {[%clk 0:00:07]} 48. Ka2 {[%clk 0:00:07]}  Kc7 {[%clk 0:00:07]} 49. Nb6 {[%clk 0:00:07]}  Rh3 {[%clk 0:00:07]} 50. Nxa4 {[%clk 0:00:08]}  Kb7 {[%clk 0:00:08]} 51. Nc3 {[%clk 0:00:08]}  Ka6 {[%clk 0:00:08]} 52. Kb3 {[%clk 0:00:09]}  Rh4 {[%clk 0:00:08]} 53. a4 {[%clk 0:00:09]}  Rh6 {[%clk 0:00:09]} 54. b5+ {[%clk 0:00:09]}  Ka5 {[%clk 0:00:09]} 55. Rd2 {[%clk 0:00:08]}  Rh3 {[%clk 0:00:04]} 56. Kc4 {[%clk 0:00:08]} 1-0


[Site "https://www.chess.com"]